Cogmind - Beta 9.6 *** ADVENTURER MODE // 2020.04.26 @ 15:32:25 Player: BinarySpace Result: Smashed by cave-in Performance ------------- Evolutions (0) 0 Regions Visited (0) 0 Robots Destroyed (10) 50 Value Destroyed (52) 52 Prototype IDs (0) 0 Alien Tech Used (0) 0 Bonus (0) 0 TOTAL SCORE: 102 Bonus ------- None Cogmind --------- Core Integrity 0/250 Matter 146/300 Energy 90/100 System Corruption 11% Temperature Cool (0) Movement Treading (160) Location -11/Scrapyard Parts ------- > --- POWER (1) -------- (None) > --- PROPULSION (2) --- Light Treads Light Treads > --- UTILITY (2) ------ (None) > --- WEAPON (2) ------- Medium Laser > --- INVENTORY (4) ---- Compact Wheel Compact Wheel Light Assault Rifle Peak State ------------ > --- POWER ------------ Light Ion Engine > --- PROPULSION ------- Light Treads Light Treads > --- UTILITY ---------- Improved Terrain Scanner Seismic Analyzer > --- WEAPON ----------- Medium Laser Mining Laser > --- INVENTORY -------- Compact Wheel Compact Wheel Light Assault Rifle [Rating: 8] Favorites ----------- Power Light Ion Engine Engine Light Ion Engine Propulsion Light Treads Treads Light Treads Utility Seismic Analyzer Device Improved Terrain Scanner Storage Small Storage Unit Processor Seismic Analyzer Weapon Medium Laser Energy Gun Medium Laser Ballistic Gun Light Assault Rifle Special Weapon Mining Laser Build | -11 ------- Run | Scr Slots Evolved . | . Power . | . Propulsion . | . Utility . | . Weapon . | . Parts Attached 10 | 10 Power 2 | 2 Engine 2 | 2 Core . | . Reactor . | . Propulsion 2 | 2 Treads 2 | 2 Leg . | . Wheel . | . Hover . | . Flight . | . Utility 3 | 3 Device 1 | 1 Storage 1 | 1 Processor 1 | 1 Hackware . | . Protection . | . Artifact . | . Weapon 3 | 3 Energy Gun 1 | 1 Energy Cannon . | . Ballistic Gun 1 | 1 Ballistic Cannon . | . Launcher . | . Special Weapon 1 | 1 Impact Weapon . | . Slashing Weapon . | . Piercing Weapon . | . Special Melee Weapon . | . Unidentified Prototypes . | . Parts Lost 5 | 5 Power 2 | 2 Propulsion . | . Utility 2 | 2 Weapon 1 | 1 Highest Loss Streak 3 | 3 Average Slot Usage (%) . | . Naked Turns . | . Heaviest Build 10 | 10 Greatest Support 40 | 40 Greatest Overweight (x) . | . Average Overweight (x) . | . Largest Inventory Capacity 6 | 6 Average Capacity 4 | 4 Most Carried 4 | 4 Average Carried 3 | 3 Final Capacity 4 | 4 Final Carried 3 | 3 Class Distribution -------------------- None Dominant Class ---------------- None Resources | -11 ----------- Run | Scr Matter Collected 246 | 246 Remotely . | . Salvage Created 195 | 195 Parts 21 | 21 Haulers Intercepted . | . Recyclers Shooed . | . Parts Field Recycled . | . Retrieved Matter . | . Parts Self-Destructed . | . Prevented . | . Kills | -11 ------- Run | Scr Combat Hostiles Destroyed . | . Classes Destroyed 2 | 2 Worker 3 | 3 Tunneler 7 | 7 Best Kill Streak 3 | 3 Combat Bots Only . | . Max Kills in Single Turn 1 | 1 Gunslinging . | . Exploded . | . Melee . | . Uniques/NPCs Destroyed . | . Combat | -11 -------- Run | Scr Damage Taken 651 | 651 Core 281 | 281 Absorbed by Shields . | . Core Remaining (%) . | . Volleys Fired 115 | 115 Largest 2 | 2 Hottest 150 | 150 Shots Fired 139 | 139 Gun 90 | 90 Cannon . | . Launcher . | . Special 49 | 49 Kinetic 8 | 8 Thermal 131 | 131 Explosive . | . Electromagnetic . | . Robot Hit Streak 14 | 14 Robot Miss Streak 1 | 1 Penetration Max . | . Secondary Targets . | . Shots Hit Robots 26 | 26 Core Hits 12 | 12 Critical Hits . | . Critical Kills . | . Critical Parts Destroyed . | . Melee Attacks . | . Impact . | . Slashing . | . Piercing . | . Sneak Attacks . | . Combat Hostiles . | . Follow-up Attacks . | . Damage Inflicted 333 | 333 Guns 284 | 284 Cannons . | . Explosions . | . Melee . | . Ramming 1 | 1 Kinetic 54 | 54 Thermal 278 | 278 Explosive . | . Electromagnetic . | . Impact . | . Slashing . | . Piercing . | . Highest Corruption 10 | 10 Average Corruption 8 | 8 Corruption Purged . | . Effects 77 | 77 Message Errors 16 | 16 Matter Fused 16 | 16 Heat Flow Errors 5 | 5 Energy Discharges 11 | 11 Data Loss (minor) 14 | 14 Data Loss (major) 3 | 3 Misfires 6 | 6 Misdirections 1 | 1 Targeting Errors 3 | 3 Weapon Failures 2 | 2 Overload Shots . | . Overflow Damage . | . Projectiles . | . Explosions . | . Melee . | . Knockbacks . | . Impact . | . Kinetic . | . Secondary . | . Self-Inflicted Damage . | . Shots . | . Rammed 1 | 1 Targets Rammed 1 | 1 Kicked . | . Crushed . | . Highest Temperature 292 | 292 Average Temperature 73 | 73 Received Heat Transfer . | . Effects 1 | 1 Interference 1 | 1 Siege Activations . | . Robots Corrupted . | . Combat Hostiles . | . Parts Fried . | . Impact Corruptions . | . Robots Melted . | . Combat Hostiles . | . Parts Melted . | . Heat Transferred 766 | 766 Parts Sabotaged . | . Parts Stolen . | . Parts Stripped . | . Power Chain Reactions . | . Missiles Intercepted . | . Alert | -11 ------- Run | Scr Peak Influence 30 | 30 Average Influence 3 | 3 Maximum Alert Level . | . Low Security (%) 100 | 100 Level 1 . | . Level 2 . | . Level 3 . | . Level 4 . | . Level 5 . | . High Security . | . Max Security . | . Squads Dispatched . | . Investigation . | . Extermination . | . Reinforcement . | . Assault . | . Garrison . | . Intercept . | . Construction Impeded . | . Haulers Reinforced . | . Stealth | -11 --------- Run | Scr Distress Signals . | . Communications Jammed . | . Distress Signals . | . Times Spotted . | . Peak Tracking Total . | . Tactical Retreats . | . Traps | -11 ------- Run | Scr Traps Triggered . | . Indirectly . | . Trap Hack Attempts . | . Triggered . | . Disarmed . | . Reprogrammed . | . Reused . | . Traps Extracted . | . Installed . | . Triggered . | . Machines | -11 ---------- Run | Scr Machines Disabled . | . Max in Single Turn . | . Machines Sabotaged . | . Garrisons Compromised . | . Overloaded Fab Kills . | . Fab Network Shutdowns . | . Hacking | -11 --------- Run | Scr Machines Accessed . | . Terminals . | . Fabricators . | . Repair Stations . | . Recycling Units . | . Scanalyzers . | . Garrison Access . | . Total Hacks . | . Successful . | . Failed . | . Catastrophic . | . Database Lockouts . | . Manual . | . Terminals . | . Fabricators . | . Repair Stations . | . Recycling Units . | . Scanalyzers . | . Garrison Access . | . Terminal Hacks . | . Fabricator Hacks . | . Repair Station Hacks . | . Recycling Unit Hacks . | . Scanalyzer . | . Garrison Access Hacks . | . Unauthorized Hacks . | . Terminals . | . Fabricators . | . Repair Stations . | . Recycling Units . | . Scanalyzers . | . Garrison Access . | . Data Cores Recovered . | . Used . | . Hacking Detections . | . Full Trace Events . | . Feedback Events . | . Feedback Blocked . | . Robot Schematics Acquired . | . Robots Built . | . Matter . | . Time . | . Total Robot Build Rating . | . Part Schematics Acquired . | . Parts Built . | . Matter . | . Time . | . Total Part Build Rating . | . Parts Repaired . | . Time . | . Parts Recycled . | . Recycled Matter . | . Retrieved Matter . | . Retrieved Components . | . Parts Scanalyzed . | . Part Schematics Acquired . | . Parts Damaged . | . Bothacking | -11 ------------ Run | Scr Used RIF Installer . | . Robots Hacked . | . Non-combat . | . Combat . | . Robot Hacks Applied . | . Relay Couplers Released . | . Robots Rewired . | . Allies Hacked . | . Hacks Repelled . | . Allies | -11 -------- Run | Scr Total Allies . | . Largest Group . | . Highest-Rated Group . | . Highest-Rated Ally . | . Total Orders . | . Ally Attacks . | . Total Damage . | . Kills . | . Allies Corrupted . | . Allies Melted . | . Intel | -11 ------- Run | Scr Robot Analysis Total . | . Derelict Logs Recovered . | . Drone Launches . | . Drone Recoveries . | . Exploration | -11 ------------- Run | Scr Turns Passed 2400 | 2400 Spaces Moved 285 | 285 Core 18 | 18 Treads 267 | 267 Legs . | . Wheels . | . Hover . | . Flight . | . Fastest Speed 50 | 50 Average Speed 153 | 153 Slowest Speed 160 | 160 Overloaded Moves . | . Propulsion Burnouts . | . Robots Hopped . | . Cave-ins Triggered 3 | 3 Exploration Rate (%) 13 | 13 Regions Visited . Branch Regions . Pre-discovered Areas . | . Known Exits Taken . | . Unknown Exits Taken . | . Scrap Searched . | . Spaces Dug 16 | 16 Terrain Destroyed 20 | 20 Melee . | . Projectile 20 | 20 AOE . | . Actions | -11 --------- Run | Scr Total 2014 | 2014 Wait 1598 | 1598 Move 284 | 284 Hop . | . Pick Up 3 | 3 Fast Attach 9 | 9 Attach 1 | 1 Detach 1 | 1 Swap . | . Drop 1 | 1 Fire 115 | 115 Melee . | . Ram . | . Kick . | . Crush 1 | 1 Escape Stasis 1 | 1 Rewire . | . Trap . | . Miscellaneous . | . Route ------- -11/Scrapyard (discovered 1 exit: [*Mat]) History --------- Turn | Location | Event 3 | -11/Scrapyard | Discovered new exit (range 16) 237 | -11/Scrapyard | Crushed by falling debris 237 | -11/Scrapyard | Core integrity fell below 50% 695 | -11/Scrapyard | Crushed by falling debris 696 | -11/Scrapyard | System corruption reached 10% 726 | -11/Scrapyard | Lost 3 parts (1p1u1w) 2402 | -11/Scrapyard | Crushed by falling debris 2402 | -11/Scrapyard | Smashed by cave-in Last Messages --------------- 02015_ 5B:EQZMFAT1%> FF2|ELKG20V